{"text_format":"3","workbook":"xlsx","n_sheets":5,"sheets":["Информация о чемпионате","Общая инфраструктура","Рабочее место конкурсантов","Расходные материалы","Личный инструмент конкурсанта"],"read":"whole","date_system":"1900"}

{"sheet":"Информация о чемпионате","index":0,"n_rows":17,"n_cols":2,"rows_kept":17}
[]
[]
["Компетенция","Системы умного дома (юниоры)"]
["Наименование этапа Чемпионата","Региональный этап Чемпионата по профессиональному мастерству \"Профессионалы\" в 2026 г."]
["Субъект РФ"]
["Базовая организация расположения конкурсной площадки","Краевое государственное бюджетное профессиональное образовательное учреждение \"Канский политехнический колледж\""]
["Адрес конкурсной площадки","663605, Красноярский край, г. Канск, ул. Красноярская, 26 стр.1"]
["Даты проведения","10.02.2026-15.02.2026"]
["Главный эксперт","Самохина Алёна Валерьевна"]
["Электронная почта ГЭ","alenkas04@mail.ru"]
["Телефон ГЭ",89048900070]
["Технический эксперт","Рожнов Виталий Сергеевич"]
["Электронная почта ТЭ","vitopsys@mail.ru"]
["Телефон ТЭ",79232763395]
["Количество конкурсантов (команд)",5]
["Количество рабочих мест",5]
["Количество экспертов (в т.ч. с ГЭ)",8]

{"sheet":"Общая инфраструктура","index":1,"n_rows":97,"n_cols":8,"rows_kept":97,"merged":[[0,0,0,7],[1,0,1,7],[2,0,2,7],[3,0,3,7],[4,0,4,7],[5,0,5,7],[6,0,6,7],[7,0,7,7],[8,0,8,7],[9,0,9,7],[10,0,10,7],[11,0,11,7],[12,0,12,1],[12,2,12,7],[13,0,13,7],[14,0,14,7],[15,0,15,7],[16,0,16,7],[17,0,17,7],[18,0,18,7],[19,0,19,7],[20,0,20,7],[21,0,21,7],[22,0,22,7],[23,0,23,7],[36,0,36,7],[37,0,37,7],[38,0,38,7],[39,0,39,7],[40,0,40,7],[41,0,41,7],[42,0,42,7],[43,0,43,7],[44,0,44,7],[45,0,45,7],[53,0,53,7],[57,0,57,7],[58,0,58,7],[59,0,59,7],[60,0,60,7],[61,0,61,7],[62,0,62,7],[63,0,63,7],[64,0,64,7],[65,0,65,7],[66,0,66,7],[73,0,73,7],[77,0,77,7],[78,0,78,7],[79,0,79,7],[80,0,80,7],[81,0,81,7],[82,0,82,7],[83,0,83,7],[84,0,84,7],[85,0,85,7],[86,0,86,7],[93,0,93,7]]}
["Инфраструктурный лист для оснащения конкурсной площадки "]
["Региональный этап Чемпионата по профессиональному мастерству \"Профессионалы\""]
["по компетенции"]
["Системы умного дома (юниоры)"]
["Основная информация о конкурсной площадке:"]
["Субъект Российской Федерации: Красноярский край"]
["Базовая организация расположения конкурсной площадки: КГБПОУ \"Канский политехнический колледж\""]
["Адрес базовой организации: г. Канск, ул. Красноярская, 26 стр.1"]
["Главный эксперт: Самохина Алёна Валерьевна, alenkas04@mail.ru, 89048900070"]
["Технический эксперт: Рожнов Виталий Сергеевич, vitopsys@mail.ru, 89232763395"]
["Количество экспертов (ЭН+ГЭ+ИЭ) + ТАП: 8"]
["Количество конкурсантов (команд): 5"]
["Количество рабочих мест: ",null,5]
["Даты проведения: _10.02.2026-15.02.2026"]
["Общая зона конкурсной площадки (оборудование, инструмент, мебель, канцелярия)"]
["Требования к обеспечению зоны (коммуникации, площадь, сети, количество рабочих мест и др.): "]
["Площадь зоны: не менее 35 кв.м."]
["Освещение: Г-1 - 300 люкс "]
["Интернет : не требуется"]
["Электричество: 3х230В (2х2,0 кВт + 1х0,8 кВт) "]
["Контур заземления для электропитания и сети слаботочных подключений (при необходимости) : система TN-C; TN-C-S"]
["Покрытие пола: не требуется"]
["Подведение/ отведение ГХВС (при необходимости) : не требуется"]
["Подведение сжатого воздуха (при необходимости): не требуется"]
["№","Наименование ","Краткие (рамочные) технические характеристики","Вид","Количество","Единица измерения","Итоговое количество","Рекомендации представителей индустрии (указывается конкретное оборудование)"]
[1,"Офисный стол","(ШхГхВ) от 1200х600х750","Мебель",1,"шт.",8]
[2,"Стул жесткий на вес 100 кг","стул пластиковый, металлическое основание","Мебель",1,"шт.",12]
[3,"Ноутбук/компьютер","не ниже CPU i5 / RAM 16 GB / HDD 1Tb / GPU 2 GB / Win10 / 15.6\" Full HD (1920x1080)","Оборудование IT",1,"шт.",1]
[4,"Мышь для компьютера","oklic","Оборудование IT",1,"шт.",1]
[5,"МФУ, А4, черно-белый + запасной картридж","kyocera mfp 1120","Оборудование IT",1,"шт.",1]
[6,"Сетевой удлинитель на 5 розеток (длина 5 метров)","сетевой фильт куб ","Оборудование IT",2,"шт.",2]
[7,"Проектор ","canon 505","Оборудование IT",1,"шт.",1]
[8,"Экран для проектора","стационарно","Оборудование IT",1,"шт.",1]
[9,"Комплект звукоусиливающей аппаратуры ","совместно с проектором","Оборудование IT",1,"шт.",1]
[10,"Мусорная корзина","пластиковая 30 л","Мебель",1,"шт.",2]
[11,"Кулер 19 л (холодная/горячая вода)","питьевые фонтаны","Охрана труда",1,"шт",{"$f":"E36","v":1}]
["Комната Конкурсантов (по количеству конкурсантов)"]
["Требования к обеспечению зоны (коммуникации, площадь, сети, количество рабочих мест и др.): "]
["Площадь зоны: не менее 18 кв.м."]
["Освещение: Допустимо верхнее искусственное освещение ( не менее 200 люкс)"]
["Интернет : не требуется"]
["Электричество: 230В (1,0 кВт)"]
["Контур заземления для электропитания и сети слаботочных подключений (при необходимости) : система TN-C; TN-C-S"]
["Покрытие пола: нет требования  - 18 м2 на всю зону"]
["Подведение/ отведение ГХВС (при необходимости) : не требуется"]
["Подведение сжатого воздуха (при необходимости): не требуется"]
["№","Наименование ","Краткие (рамочные) технические характеристики","Вид","Количество","Единица измерения","Итоговое количество","Рекомендации представителей индустрии (указывается конкретное оборудование)"]
[1,"Офисный стол","(ШхГхВ) от 1200х600х750","Мебель",1,"шт",2]
[2,"Стул жесткий на вес 100 кг","Стул металлический каркас, пластик вес 100 кг","Мебель",1,"шт.",5]
[3,"Кабинки для личных вещей и инструментов участников ","Кабинка металлическая","Мебель",1,"шт.",5]
[4,"Мусорная корзина","Пластик, 30 литров","Мебель",1,"шт.",1]
[5,"Вешалка для одежды","Кабинки для хранения верхней одежды","Мебель",1,"шт",1]
[6,"Сетевой удлинитель на 5 розеток (длина 5 метров)","Фильтр, удлинитель Куб","Оборудование IT",1,"шт.",1]
["Охрана труда и техника безопасности"]
["№","Наименование ","Краткие (рамочные) технические характеристики","Вид","Количество","Единица измерения","Итоговое количество","Рекомендации представителей индустрии (указывается конкретное оборудование)"]
[1,"Аптечка","Аптечка первой помощи ФЭС","Охрана труда",1,"шт",{"$f":"E56","v":1}]
[2,"Огнетушитель","Огнетушитель углекислотный","Охрана труда",1,"шт",{"$f":"E57","v":1}]
["Комната Экспертов (включая Главного эксперта) (по количеству экспертов)"]
["Требования к обеспечению зоны (коммуникации, площадь, сети, количество рабочих мест и др.): "]
["Площадь зоны: не менее 18 кв.м."]
["Освещение: Допустимо верхнее искусственное освещение ( не менее 200 люкс)"]
["Интернет : Wi-Fi "]
["Электричество: 230В (1,0 кВт)"]
["Контур заземления для электропитания и сети слаботочных подключений (при необходимости) : система TN-C; TN-C-S"]
["Покрытие пола: нет требования  - 18 м2 на всю зону"]
["Подведение/ отведение ГХВС (при необходимости) : не требуется"]
["Подведение сжатого воздуха (при необходимости): не требуется"]
["№","Наименование ","Краткие (рамочные) технические характеристики","Вид","Количество","Единица измерения","Итоговое количество","Рекомендации представителей индустрии (указывается конкретное оборудование)"]
[1,"Офисный стол","(ШхГхВ) от 1200х600х750","Мебель",1,"шт",5]
[2,"Стул жесткий на вес 100 кг","Стул металлический каркас, пластик вес 100 кг","Мебель",1,"шт.",6]
[3,"Сетевой удлинитель на 5 розеток (длина 5 метров)","Фильтр, удлинитель Куб","Оборудование IT",1,"шт.",1]
[4,"Вешалка для одежды","Кабинки для хранения верхней одежды","Мебель",1,"шт",1]
[5,"Мусорная корзина","Пластик, 30 литров","Мебель",1,"шт.",1]
["Охрана труда и техника безопасности"]
["№","Наименование ","Краткие (рамочные) технические характеристики","Вид","Количество","Единица измерения","Итоговое количество","Рекомендации представителей индустрии (указывается конкретное оборудование)"]
[1,"Аптечка","Аптечка первой помощи ФЭС","Охрана труда",1,"шт",{"$f":"E76","v":1}]
[2,"Огнетушитель","Огнетушитель углекислотный","Охрана труда",1,"шт",{"$f":"E77","v":1}]
["Складское помещение"]
["Требования к обеспечению зоны (коммуникации, площадь, сети, количество рабочих мест и др.): "]
["Площадь зоны: не менее 16 кв.м."]
["Освещение: Допустимо верхнее искусственное освещение ( не менее 200 люкс)"]
["Интернет : не требуется"]
["Электричество: 230В (1,0 кВт)"]
["Контур заземления для электропитания и сети слаботочных подключений (при необходимости) : система TN-C; TN-C-S"]
["Покрытие пола: нет требования  - 16 м2 на всю зону"]
["Подведение/ отведение ГХВС (при необходимости) : не требуется"]
["Подведение сжатого воздуха (при необходимости): не требуется"]
["№","Наименование ","Краткие (рамочные) технические характеристики","Вид","Количество","Единица измерения","Итоговое количество","Рекомендации представителей индустрии (указывается конкретное оборудование)"]
[1,"Офисный стол","мебель","Мебель",1,"шт",2]
[2,"Стул","мебель","Мебель",1,"шт",4]
[3,"Стелаж","мебель","Мебель",1,"шт",3]
[4,"Вешалка для одежды","Кабинки для хранения верхней одежды","Мебель",1,"шт",1]
[5,"Мусорная корзина","Пластик, 30 литров","Мебель",2,"шт.",2]
["Охрана труда и техника безопасности"]
["№","Наименование ","Краткие (рамочные) технические характеристики","Вид","Количество","Единица измерения","Итоговое количество","Рекомендации представителей индустрии (указывается конкретное оборудование)"]
[1,"Аптечка","Аптечка первой помощи ФЭС","Охрана труда",1,"шт",{"$f":"E96","v":1}]
[2,"Огнетушитель углекислотный ОУ-1 или аналог","Огнетушитель углекислотный","Охрана труда",1,"шт",{"$f":"E97","v":1}]

{"sheet":"Рабочее место конкурсантов","index":2,"n_rows":61,"n_cols":8,"rows_kept":61,"merged":[[0,0,0,7],[1,0,1,7],[2,0,2,7],[3,0,3,7],[4,0,4,7],[5,0,5,7],[6,0,6,7],[7,0,7,7],[8,0,8,7],[9,0,9,7],[10,0,10,7],[11,0,11,7],[12,0,12,1],[12,2,12,7],[13,0,13,7],[14,0,14,7],[15,0,15,7],[16,0,16,7],[17,0,17,7],[18,0,18,7],[19,0,19,7],[20,0,20,7],[21,0,21,7],[22,0,22,7],[23,0,23,7],[57,0,57,7]]}
["Инфраструктурный лист для оснащения конкурсной площадки "]
["Региональный этап Чемпионата по профессиональному мастерству \"Профессионалы\""]
["по компетенции"]
["Системы умного дома (юниоры)"]
["Основная информация о конкурсной площадке:"]
["Субъект Российской Федерации: Красноярский край"]
["Базовая организация расположения конкурсной площадки: КГБПОУ \"Канский политехнический колледж\""]
["Адрес базовой организации: г. Канск, ул. Красноярская, 26 стр.1"]
["Главный эксперт: Самохина Алёна Валерьевна, alenkas04@mail.ru, 89048900070"]
["Технический эксперт: Рожнов Виталий Сергеевич, vitopsys@mail.ru, 89232763395"]
["Количество экспертов (ЭН+ГЭ+ИЭ) + ТАП: 8"]
["Количество конкурсантов (команд): 5"]
["Количество рабочих мест: ",null,5]
["Даты проведения: _10.02.2026-15.02.2026"]
["Рабочее место Конкурсанта (основное оборудование, вспомогательное оборудование, инструмент (по количеству рабочих мест)"]
["Требования к обеспечению зоны (коммуникации, площадь, сети, количество рабочих мест и др.): "]
["Площадь зоны: не менее 15 кв.м."]
["Освещение: Г-1 - 300 люкс "]
["Интернет : точка подключения через розетку RJ45 на каждое рабочее место"]
["Электричество: 230В (2,0 кВт) на каждое рабочее место"]
["Контур заземления для электропитания и сети слаботочных подключений (при необходимости) : система TN-C; TN-C-S"]
["Покрытие пола: не скользкое, не ковролин  - 75 м2 на всю зону"]
["Подведение/ отведение ГХВС (при необходимости) : не требуется"]
["Подведение сжатого воздуха (при необходимости): не требуется"]
["№","Наименование ","Краткие (рамочные) технические характеристики","Вид","Количество","Единица измерения","Итоговое количество","Рекомендации представителей индустрии (указывается конкретное оборудование)"]
[1,"Рабочая поверхность","Материал стен: фанера, толщина не менее 20мм., на жестком основании, размер:1600х2500мм. ","рабочая поверхность",1,"шт.",{"$f":"E26*$C$13","v":5}]
[2,"Ящик для материалов (пластиковый короб)","размер не менее 560x390x280мм.","Оборудование",1,"шт.",{"$f":"E27*$C$13","v":5}]
[3,"Стремянка двухсторонняя","Ширина лестницы - 42см., кол-во секций - 2шт., кол-во ступеней - 5шт., макс.нагрузка - 150кг.,материал - алюминий, сталь, вес - 3,2 кг.","Оборудование",1,"шт.",5]
[4,"Стусло поворотное","Производитель на усмотрение организатора","Инструмент",1,"шт.",5]
[5,"Струбцина","Для фиксации стусла","Инструмент",2,"шт.",10]
[6,"Веник и совок","Комплект, пластик","Инструмент",1,"шт.",5]
[7,"Щетка-сметка ","Размер 30*15","Инструмент",1,"шт.",5]
[8,"Мусорная корзина ","не менее 60 л.","Инструмент",1,"шт.",5]
[9,"Диэлектрический коврик","размер не менее 750x750x6мм.","Оборудование",1,"шт.",5]
[10,"Верстак ","Размеры: не менее (Ш,Д,В) 700х1400х800мм.","Мебель",1,"шт.",5]
[11,"Инструментальная тележка трех ярусная открытая ","Трехъярусная, металл на колесах","Мебель",1,"шт.",5]
[12,"Корпус пластиковый "," ЩРН-П- не менее 10 модулей","Оборудование",1,"шт.",5]
[13,"Выключатель автоматический ","2Р 25А 4,5кА С","Оборудование",1,"шт.",5]
[14,"Автоматический выключатель дифференциального тока","2Р C16, 30мА","Оборудование",1,"шт.",5]
[15,"Выключатель автоматический "," 1Р 6А 4,5кА С","Оборудование",1,"шт.",5]
[16,"Интернет точка","Розетка RJ-45","Оборудование",1,"шт.",5]
[17,"Розетка 2-местная для открытой установки "," с заземляющим контактом 16А ","Оборудование",1,"шт.",5]
[18,"Провод ","ПВС 3х2,5","Расходные материалы",7,"м.",35]
[19,"Светильник светодиодный","Освещение рабочего места (местное)","Оборудование",1,"шт.",5]
[20,"Провод ","ПВС 3х0,75","Расходные материалы",5,"м.",25]
[21,"Вилка переносная ","16А,230В 2Р+РЕ","Оборудование",1,"шт.",5]
[22,"Розетка стационарная","16А, 200-250В, Р+N+РЕ","Оборудование",1,"шт.",5]
[23,"Розетка переносная","16А, 200-250В, Р+N+РЕ","Оборудование",2,"шт.",10]
[24,"Кабель витая пара","UTP-4-CU","Расходные материалы",3,"м.",{"$f":"E49*$C$13","v":15}]
[25,"Коннектор RJ45","для витой пары","Расходные материалы",2,"шт.",10]
[26,"Рабочий стол","(ШхГхВ) от 1200х600х750","Мебель",1,"шт.",{"$f":"E51*$C$13","v":5}]
[27,"Стул жесткий на вес 100 кг","Тип, модель, производитель - на усмотрение организаторов","Мебель",1,"шт.",{"$f":"E52*$C$13","v":5}]
[28,"Ноутбук","не ниже CPU i5 / RAM 8 GB / HDD 512 GB / GPU 2 GB / Win10 / 15.6\" Full HD (1920x1080)","Оборудование IT",1,"шт.",5]
[29,"Мышь для компьютера","Пластик основание металл","Оборудование IT",1,"шт.",5]
[30,"Программное обеспечение для ПК (windows, ПО для ПЛР и т.д.)","Owen Logic","Оборудование IT",1,"шт.",5]
[31,"Смартфон под управлением мобильных ОС","samsung","Оборудование IT",1,"шт.",{"$f":"E56*$C$13","v":5}]
[32,"Программное обеспечение для мобилного устройства","Smart Life","Оборудование IT",1,"шт.",{"$f":"E57*$C$13","v":5}]
["Охрана труда и техника безопасности"]
["№","Наименование ","Краткие (рамочные) технические характеристики","Вид","Количество","Единица измерения","Итоговое количество","Рекомендации представителей индустрии (указывается конкретное оборудование)"]
[1,"Аптечка","Аптечка первой помощи ФАС","Охрана труда",1,"шт",{"$f":"E60","v":1}]
[2,"Огнетушитель","Огнетушитель углекислотный","Охрана труда",1,"шт",{"$f":"E61","v":1}]

{"sheet":"Расходные материалы","index":3,"n_rows":96,"n_cols":8,"rows_kept":96,"merged":[[0,0,0,7],[1,0,1,7],[2,0,2,7],[3,0,3,7],[4,0,4,7],[5,0,5,7],[6,0,6,7],[7,0,7,7],[8,0,8,7],[9,0,9,7],[10,0,10,7],[11,0,11,7],[12,0,12,1],[12,2,12,7],[13,0,13,7],[14,0,14,7]]}
["Инфраструктурный лист для оснащения конкурсной площадки "]
["Региональный этап Чемпионата по профессиональному мастерству \"Профессионалы\""]
["по компетенции"]
["Системы умного дома (юниоры)"]
["Основная информация о конкурсной площадке:"]
["Субъект Российской Федерации: Красноярский край"]
["Базовая организация расположения конкурсной площадки: КГБПОУ \"Канский политехнический колледж\""]
["Адрес базовой организации: г. Канск, ул. Красноярская, 26 стр.1"]
["Главный эксперт: Самохина Алёна Валерьевна, alenkas04@mail.ru, 89048900070"]
["Технический эксперт: Рожнов Виталий Сергеевич, vitopsys@mail.ru, 89232763395"]
["Количество экспертов (ЭН+ГЭ+ИЭ) + ТАП: 8"]
["Количество конкурсантов (команд): 5"]
["Количество рабочих мест: ",null,5]
["Даты проведения: _10.02.2026-15.02.2026"]
["Рабочее место Конкурсанта (расходные материалы по количеству конкурсантов)"]
["№","Наименование ","Краткие (рамочные) технические характеристики","Вид","Количество (на 1 Конкурсанта)","Единица измерения","Итоговое количество (на 5 Конкурсантов)","Рекомендации представителей индустрии (указывается конкретное оборудование)"]
[1,"Кабельный канал","ШхГхД: 100х60х2000, (с возможностью установки разделительной перегородки)","Расходные материалы",2,"м.",{"$f":"E17*$C$13","v":10}]
[2,"Заглушка для кабельный канал 100х60","совместимая заглушка, универсальное исполнение, защелкивается на внешнюю сторону","Расходные материалы",2,"шт.",{"$f":"E18*$C$13","v":10}]
[3,"Перегородка разделительная для кабельный канал 100х60","совместимая разделительная перегородка h=60 мм","Расходные материалы",1,"шт.",5]
[4,"Кабельный канал","ШхГхД: 25х16х2000 ","Расходные материалы",2,"м.",10]
[5,"Труба гладкая жесткая д 16","нар. диаметр: 16мм, внутр. диаметр не менее 14,5 мм, длина 3м","Расходные материалы",1,"м.",5]
[6,"Труба гофрированная д 16",null,"Расходные материалы",1,"м.",5]
[7,"Держатель с защелкой д 16","материал: ударный полистирол, способ/тип крепления: отверстие под винт","Расходные материалы",15,"шт.",75]
[8,"Труба гладкая жесткая д 20","нар. диаметр: 20 мм, внутр. диаметр не менее 18,5 мм","Расходные материалы",1,"м.",5]
[9,"Держатель с защелкой д 20","материал: ударный полистирол, способ/тип крепления: отверстие под винт","Расходные материалы",5,"шт.",25]
[12,"Муфта труба-коробка  IP65 д 16","степень защиты IP65, материал: ПВХ (PVC), модель или исполнение: резьбовая","Расходные материалы",4,"шт.",20]
[13,"Муфта труба-коробка  IP65 д 20","степень защиты IP65, материал: ПВХ (PVC), модель или исполнение: резьбовая","Расходные материалы",1,"шт.",5]
[15,"Умное реле двухканальное (умный контроллер)","с нейтралью, Zigbee протокол, работа с приложением SmartLife","Оборудование",2,"шт.",{"$f":"E28*$C$13","v":10}]
[16,"Умное реле одноканальное (умный контроллер)","с нейтралью, Zigbee протокол, работа с приложением SmartLife","Оборудование",1,"шт.",5]
[null,"Беспроводная кнопка","3 типа нажатия, Zigbee протокол, работа с приложением SmartLife ","Оборудование",1,"шт.",5]
[17,"Вилка стационарная ","16А, 200-250В, Р+N+РЕ","Оборудование",1,"шт.",5]
[18,"Кнопочный выключатель двухклавишный","внутренней установки 10 А (3 контакта)","Оборудование",2,"шт.",10]
[19,"Розетка с з/к 16А","внутренней установки (3 контакта)","Оборудование",2,"шт.",10]
[20,"Розетка RJ45","Внутренней установки","Оборудование",1,"шт.",5]
[21,"Коробка универсальная ","КМКУ 88х88х44","Расходные материалы",5,"шт.",25]
[22,"Распределительная коробка","80х80х50, гладкие стенки","Расходные материалы",1,"шт.",5]
[23,"Корпус поста ","для кнопок управления 2 места","Оборудование",2,"шт.",{"$f":"E37*$C$13","v":10}]
[24,"Лампа сигнальная","d=22мм, 230В","Оборудование",4,"шт.",{"$f":"E38*$C$13","v":20}]
[25,"Щит слаботочный","Навесной, пластиковый  (361х396х112мм), с перфорированной монтажной панелью","Оборудование",1,"шт.",{"$f":"E39*$C$13","v":5}]
[26,"Сальник резиновый","диаметр  в соответствии с отверстиями в слаботочном щите","Расходные материалы",2,"шт.",{"$f":"E40*$C$13","v":10}]
[27,"Wi-Fi роутер ","Двухдиапазонный 2,4/5 ГГц","Оборудование",1,"шт.",5]
[28,"Розетка двойная","Наружная установка, с заземлением, 16А","Оборудование",1,"шт.",5]
[29,"Умный шлюз","Zigbee протокол, беспроводной, работа с приложением SmartLife","Оборудование",1,"шт.",{"$f":"E43*$C$13","v":5}]
[30,"Бокс ЩРН-П","36 модулей, шины N,PE","Оборудование",1,"шт.",5]
[31,"Счетчик электрической энергии","однофазный, 60А, на DIN-рейку ","Оборудование",1,"шт.",5]
[32,"Реле напряжения","однофазный, 25А, на DIN-рейку ","Оборудование",1,"шт.",5]
[33,"Автоматический выключатель ","2Р 25А 4,5кА х-ка С","Оборудование",1,"шт.",5]
[34,"Автоматический выключатель дифференциального тока "," 2Р 16А 30мА х-ка С","Оборудование",3,"шт.",15]
[35,"Автоматический выключатель ","1Р 6А 4,5кА х-ка С","Оборудование",2,"шт.",10]
[36,"Зажим наборный ","ЗНИ-4мм2 серый","Расходные материалы",20,"шт.",{"$f":"E50*$C$13","v":100}]
[37,"Заглушка ","для ЗНИ4мм2 ","Расходные материалы",1,"шт.",{"$f":"E51*$C$13","v":5}]
[38,"Ограничитель на DIN-рейку ","металл","Расходные материалы",6,"шт.",30]
[39,"Сальник резиновый","диаметр  в соответствии с отверстиями в ЩРН-П-36","Расходные материалы",4,"шт.",20]
[40,"Кабель ","ВВГ 3х4 (синий; ж-зеленый; белый…) ","Расходные материалы",2,"м.",10]
[41,"Провод ","ПВС 3х0,75 ","Расходные материалы",8,"м.",40]
[42,"Провод ","ПВС 3х2,5 ","Расходные материалы",5,"м.",{"$f":"E56*$C$13","v":25}]
[43,"Провод ","ПВ3 1х2,5 (белый) ","Расходные материалы",5,"м.",25]
[44,"Провод","ПВ3 1х2,5 (синий)","Расходные материалы",3,"м.",15]
[45,"Провод ","ПВ3 1х0,75 (белый) ","Расходные материалы",5,"м.",25]
[46,"Провод ","ПВ3 1х0,75 (синий)","Расходные материалы",3,"м.",15]
[47,"Кабель витая пара","UTP-4-CU","Расходные материалы",3,"м.",15]
[48,"Клемма строительно-монтажная","СМК 222-413","Расходные материалы",2,"шт.",10]
[49,"Коннектор RJ45","для витой пары RJ45","Расходные материалы",1,"шт.",5]
[50,"Наконечник штыревой ","НШвИ 0,75-8,0 (100шт/уп.)","Расходные материалы",1,"упак.",5]
[51,"Наконечник штыревой ","НШвИ 2х0.75-10 НГИ2 (50шт/уп.)","Расходные материалы",1,"упак.",5]
[52,"Наконечник штыревой ","НШвИ 2,5-8,2 (100шт/уп.)","Расходные материалы",1,"упак.",5]
[53,"Наконечник штыревой ","НШвИ 2х2.5-12 НГИ2 (50шт/уп.)","Расходные материалы",1,"упак.",5]
[54,"Скотч двухсторонний","Для крепления ZigBee реле","Расходные материалы",1,"упак.",5]
[55,"Саморезы металл с пером 3,5х19","Металл","Расходные материалы",20,"шт.",100]
[56,"Саморезы универсальные 3,5х19","Металл","Расходные материалы",50,"шт.",250]
[57,"Саморезы универсальные 3,5х25","Металл","Расходные материалы",50,"шт.",250]
[58,"Перчатки","Личные СИЗ участника","Охрана труда",1,"шт.",5]
[59,"Очки защитные","Личные СИЗ участника","Охрана труда",1,"шт.",5]
[60,"Обувь закрытого типа","Личные СИЗ участника","Охрана труда",1,"шт.",5]
[61,"Ручка шариковая","Ручка шариковая синяя","Расходные материалы",1,"шт.",{"$f":"E75*$C$13","v":5}]
[62,"Карандаш HB","Карандаш НВ","Расходные материалы",1,"шт.",5]
[63,"Стирательная резинка","Резинка стирательная","Расходные материалы",1,"шт.",5]
[64,"Бумага (500 листов)","А4","Расходные материалы",2,"упак.",2]
[65,"Линейка (20-30 см)","Линейка металл","Расходные материалы",1,"шт.",{"$f":"E79*$C$13","v":5}]
[66,"Степлер со скобами","Степлет 10 мм","Расходные материалы",1,"шт.",2]
[67,"Степлер усиленный со скобами","Степлел 24 мм","Расходные материалы",1,"шт.",2]
[68,"Файлы А4 (100 л)","Файл пластиковый","Расходные материалы",1,"упак.",2]
[69,"Скотч 10м. ширина от 35мм","Скотч 10м","Расходные материалы",1,"шт.",2]
[70,"Планшеты для экспертов А4","пластик","Расходные материалы",1,"шт.",7]
[71,"Ножницы","Ножницы","Расходные материалы",1,"шт.",1]
[72,"Нож канцелярский с запасом лезвий","Нож 25 мм","Расходные материалы",1,"шт.",1]
[73,"Стенд \"Программирование ПЛК\" в составе:","Приложение 6","Оборудование",1,"шт.",5]
[74,"Щит пластиковый","накладной, пластик, не менее IP20","Оборудование",1,"шт.",5]
[75,"Автоматический выключатель"," U=220В, с защитой от токов КЗ, перегрузки, утечки ","Оборудование",1,"шт.",5]
[76,"Программируемое реле(220)"," 230В/24В, 8 входов, 4 выхода","Оборудование",1,"шт.",5]
[77,"Блок питания (трансформатор)"," 230В/12-24В/ аналог","Оборудование",1,"шт.",5]
[78,"Кнопка управления ","1НО,1НЗ с самовозвратом","Оборудование",4,"шт.",20]
[79,"Выключатель/переключатель","1НО с фиксацией","Оборудование",4,"шт.",20]
[80,"Лампа индикаторная","230В/12-24В/ аналог","Оборудование",4,"шт.",20]
[81,"Провод ПВ3 ","от 1,0 до 1,5 мм²","Оборудование",15,"м.",75]
[82,"Наконечник гильза","от 1,0 до 1,5 мм²","Оборудование",50,"шт.",250]

{"sheet":"Личный инструмент конкурсанта","index":4,"n_rows":35,"n_cols":7,"rows_kept":35,"merged":[[0,0,0,6],[1,0,1,6],[2,0,2,6],[3,0,3,6],[4,0,4,6]]}
["Инфраструктурный лист для оснащения конкурсной площадки "]
["Региональный этап Чемпионата по профессиональному мастерству \"Профессионалы\""]
["по компетенции"]
["Системы умного дома (юниоры)"]
["Рекомендуемый инструмент конкурсанта (тип, количество, производитель определяется конкурсантом самостоятельно)"]
["№","Наименование ","Краткие (рамочные) технические характеристики","Вид","Количество","Единица измерения","Примечание "]
[1,"Пояс для инструмента","Производитель, тип, на усмотрение конкурсанта"]
[2,"Пассатижи ","Производитель, тип, на усмотрение конкурсанта"]
[3,"Боковые кусачки ","Производитель, тип, на усмотрение конкурсанта"]
[4,"Устройство для снятия изоляции 0,2-6мм","Производитель, тип, на усмотрение конкурсанта"]
[5,"Нож для резки и зачистки кабеля с ручкой, с фиксатором","Производитель, тип, на усмотрение конкурсанта"]
[6,"Набор отверток плоских, крестовых","Производитель, тип, на усмотрение конкурсанта"]
[7,"Мультиметр универсальный","Производитель, тип, на усмотрение конкурсанта"]
[8,"Мегаомметр","Производитель, тип, на усмотрение конкурсанта"]
[9,"Уровень, L= 20-40см","Производитель, тип, на усмотрение конкурсанта"]
[10,"Уровень, L= 150см","Производитель, тип, на усмотрение конкурсанта"]
[11,"Молоток","Производитель, тип, на усмотрение конкурсанта"]
[12,"Набор бит","Производитель, тип, на усмотрение конкурсанта"]
[13,"Набор сверл, D= 1-10","Производитель, тип, на усмотрение конкурсанта"]
[14,"Сверло для отверстий  d=12-32мм","Производитель, тип, на усмотрение конкурсанта"]
[15,"Напильник плоский","Производитель, тип, на усмотрение конкурсанта"]
[16,"Напильник круглый","Производитель, тип, на усмотрение конкурсанта"]
[17,"Ящик для инструмента","Производитель, тип, на усмотрение конкурсанта"]
[18,"Рулетка","Производитель, тип, на усмотрение конкурсанта"]
[19,"Круглогубцы","Производитель, тип, на усмотрение конкурсанта"]
[20,"Угломер","Производитель, тип, на усмотрение конкурсанта"]
[21,"Шуруповерт аккумуляторный","Производитель, тип, на усмотрение конкурсанта"]
[22,"Клещи обжимные  0,5-6,0 мм2","Производитель, тип, на усмотрение конкурсанта"]
[23,"Пресс-клещи для RJ разъемов","Производитель, тип, на усмотрение конкурсанта"]
[24,"Кисть малярная (для уборки стружки)","Производитель, тип, на усмотрение конкурсанта"]
[25,"Пружина стальная для изгиба жестких ПВХ труб д.16мм","Производитель, тип, на усмотрение конкурсанта"]
[26,"Угольник металлический","Производитель, тип, на усмотрение конкурсанта"]
[27,"Пылесос аккумуляторный","Производитель, тип, на усмотрение конкурсанта"]
[28,"Маркировочное устройство P-touch/ аналог","Производитель, тип, на усмотрение конкурсанта"]
[29,"Маркеры для проводников, клемм и зажимов","Производитель, тип, на усмотрение конкурсанта"]